fUST/lending_fUST_20250214
["ID","MTS","AMOUNT","RATE_DAILY","PERIOD"]
[353020329,1739487049030,-153.0,0.00013939,2]
[353020331,1739487049040,-153.0,0.00013939,2]
[353020333,1739487049051,-153.0,0.00013939,2]
[353020335,1739487049062,-153.0,0.00013939,2]
[353020337,1739487049073,-153.0,0.00013939,2]
[353020339,1739487049082,-153.0,0.00013939,2]
[353020341,1739487049092,-153.0,0.00013939,2]
[353020343,1739487049103,-153.0,0.00013939,2]
[353020345,1739487049113,-153.0,0.00013939,2]
[353020347,1739487049123,-153.0,0.00013939,2]
[353020349,1739487049133,-153.0,0.00013939,2]
[353020362,1739487049259,-153.0,0.00013939,2]
[353020364,1739487049269,-153.0,0.00013939,2]
[353020366,1739487049280,-153.0,0.00013939,2]
[353020368,1739487049291,-153.0,0.00013939,2]
[353020370,1739487049301,-153.0,0.00013939,2]
[353020372,1739487049312,-153.0,0.00013939,2]
[353020374,1739487049322,-153.0,0.00013939,2]
[353020376,1739487049332,-153.0,0.00013939,2]
[353020378,1739487049342,-153.0,0.00013939,2]
[353020380,1739487049352,-153.0,0.00013939,2]
[353020381,1739487049363,-609.54,0.00013944,2]
[353020384,1739487049374,-609.54,0.00013944,2]
[353020386,1739487049385,-500.0,0.00013944,2]
[353020388,1739487049399,-500.0,0.00013944,2]
[353020390,1739487049410,-203.37,0.00013945,2]
[353020392,1739487049422,-500.0,0.00013945,2]
[353020394,1739487049434,-537.23214845,0.00013945,2]
[353020396,1739487049445,-500.0,0.00013945,2]
[353020398,1739487049455,-603.48,0.00013945,2]
[353020399,1739487049465,-500.0,0.00013945,2]
[353020401,1739487049475,-500.0,0.00013945,2]
[353020403,1739487049486,-271.62,0.00013945,2]
[353020405,1739487049495,-500.0,0.00013945,2]
[353020407,1739487049507,-500.0,0.00013945,2]
[353020409,1739487049523,-597.43,0.00013945,2]
[353020411,1739487049537,-500.0,0.00013945,2]
[353020413,1739487049550,-554.89,0.00013945,2]
[353020415,1739487049561,-500.0,0.00013945,2]
[353020417,1739487049570,-500.0,0.00013945,2]
[353020419,1739487049582,-500.0,0.00013945,2]
[353020421,1739487049592,-1342.25,0.00013945,2]
[353020424,1739487049603,-500.0,0.00013945,2]
[353020426,1739487049614,-516.08,0.00013945,2]
[353020428,1739487049624,-500.0,0.00013945,2]
[353020429,1739487049633,-500.0,0.00013945,2]
[353020431,1739487049643,-592.3,0.00013945,2]
[353020433,1739487049654,-15683.85,0.00013945,2]
[353020435,1739487049664,-500.0,0.00013945,2]
[353020437,1739487049674,-867.66,0.00013945,2]
[353020439,1739487049684,-674.82,0.00013945,2]
[353020441,1739487049694,-500.0,0.00013945,2]
[353020443,1739487049704,-2242.5,0.00013945,2]
[353020445,1739487049714,-1200.03,0.00013945,2]
[353020447,1739487049723,-500.0,0.00013945,2]
[353020449,1739487049734,-1438.09,0.00013945,2]
[353020451,1739487049743,-500.0,0.00013945,2]
[353020453,1739487049753,-500.0,0.00013945,2]
[353020455,1739487049762,-500.0,0.00013945,2]
[353020457,1739487049771,-500.0,0.00013945,2]
[353020459,1739487049781,-500.0,0.00013945,2]
[353020461,1739487049791,-1448.34,0.00013945,2]
[353020463,1739487049800,-1245.39,0.00013945,2]
[353020465,1739487049810,-510.42,0.00013945,2]
[353020467,1739487049819,-500.0,0.00013945,2]
[353020469,1739487049828,-880.37,0.00013945,2]
[353020471,1739487049838,-254.32,0.00013945,2]
[353020473,1739487049848,-500.0,0.00013945,2]
[353020475,1739487049857,-500.0,0.00013945,2]
[353020477,1739487049867,-632.95,0.00013945,2]
[353020479,1739487049876,-500.0,0.00013945,2]
[353020481,1739487049886,-500.0,0.00013945,2]
[353020484,1739487049896,-1115.78,0.00013945,2]
[353020486,1739487049906,-5790.3,0.00013945,2]
[353020487,1739487049915,-511.1,0.00013945,2]
[353020488,1739487049925,-570.97,0.00013945,2]
[353020489,1739487049934,-151.0,0.00014,2]
[353020490,1739487049944,-151.0,0.00014,2]
[353020492,1739487049956,-609.54,0.00014026,2]
[353020494,1739487049966,-609.54,0.00014026,2]
[353020496,1739487049975,-500.0,0.00014026,2]
[353020498,1739487049984,-500.0,0.00014026,2]
[353020500,1739487049994,-151.0,0.00014027,2]
[353020502,1739487050002,-176.58419,0.00014027,2]
[353020504,1739487050012,-500.0,0.00014027,2]
[353020506,1739487050022,-500.0,0.00014027,2]
[353020508,1739487050031,-500.0,0.00014027,2]
[353020510,1739487050041,-500.0,0.00014027,2]
[353020512,1739487050051,-500.0,0.00014027,2]
[353020515,1739487050060,-500.0,0.00014027,2]
[353020517,1739487050071,-554.89,0.00014027,2]
[353020518,1739487050080,-500.0,0.00014027,2]
[353020520,1739487050089,-1342.25,0.00014027,2]
[353020522,1739487050099,-500.0,0.00014027,2]
[353020524,1739487050108,-516.08,0.00014027,2]
[353020526,1739487050118,-500.0,0.00014027,2]
[353020528,1739487050127,-500.0,0.00014027,2]
[353020530,1739487050137,-592.3,0.00014027,2]
[353020533,1739487050147,-2324.04446135,0.00014027,2]
[353020600,1739487050806,-500.0,0.00013698,2]
[353020603,1739487050816,-219.089473,0.00013698,2]
[353020605,1739487050828,-280.910527,0.00013698,2]
[353020607,1739487050838,-334.51,0.000137,2]
[353020609,1739487050849,-334.51,0.000137,2]
[353020611,1739487050858,-334.51,0.000137,2]
[353020613,1739487050868,-334.51,0.000137,2]
[353020615,1739487050878,-334.51,0.000137,2]
[353020617,1739487050887,-334.51,0.000137,2]
[353020619,1739487050896,-334.51,0.000137,2]
[353020621,1739487050905,-334.51,0.000137,2]
[353020623,1739487050915,-334.51,0.000137,2]
[353020625,1739487050925,-5073.12915135,0.00014027,2]
[353020627,1739487050936,-2553.7,0.00014027,2]
[353020635,1739487051001,6661.79459104,8.843e-05,2]
[353020639,1739487051034,20000.0,8.843e-05,2]
[353020644,1739487051066,2314.54057579,8.843e-05,2]
[353020655,1739487051161,-500.0,0.00013697,2]
[353020668,1739487051275,-321.66502649,0.00014027,2]
[353020670,1739487051286,-840.21759612,0.00014027,2]
[353020672,1739487051298,-4571.09376469,0.00014027,2]
[353020675,1739487051308,-867.66,0.00014027,2]
[353020677,1739487051317,-674.82,0.00014027,2]
[353020679,1739487051327,-500.0,0.00014027,2]
[353020681,1739487051336,-2242.5,0.00014027,2]
[353020683,1739487051346,-1200.03,0.00014027,2]
[353020685,1739487051355,-500.0,0.00014027,2]
[353020687,1739487051364,-1438.09,0.00014027,2]
[353020689,1739487051374,-500.0,0.00014027,2]
[353020691,1739487051383,-500.0,0.00014027,2]
[353020693,1739487051396,-300.34,0.00014027,2]
[353020694,1739487051406,-1448.34,0.00014027,2]
[353020696,1739487051416,-1245.39,0.00014027,2]
[353020699,1739487051427,-510.42,0.00014027,2]
[353020701,1739487051438,-500.0,0.00014027,2]
[353020703,1739487051447,-880.37,0.00014027,2]
[353020704,1739487051456,-500.0,0.00014027,2]
[353020707,1739487051468,-500.0,0.00014027,2]
[353020709,1739487051477,-500.0,0.00014027,2]
[353020711,1739487051487,-500.0,0.00014027,2]
[353020713,1739487051497,-1115.78,0.00014027,2]
[353020715,1739487051507,-5790.3,0.00014027,2]
[353020716,1739487051516,-511.1,0.00014027,2]
[353020719,1739487051526,-570.97,0.00014027,2]
[353020721,1739487051535,-151.0,0.000141,2]
[353020723,1739487051545,-609.54,0.00014108,2]
[353020724,1739487051555,-609.54,0.00014108,2]
[353020727,1739487051564,-609.54,0.00014108,2]
[353020729,1739487051574,-609.54,0.00014108,2]
[353020731,1739487051583,-609.77797377,0.00014108,2]
[353020733,1739487051594,-500.0,0.00014108,2]
[353020734,1739487051603,-500.0,0.00014108,2]
[353020737,1739487051613,-488.72,0.00014108,2]
[353020739,1739487051622,-500.0,0.00014109,2]
[353020741,1739487051631,-333.79,0.00014109,2]
[353020743,1739487051640,-526.67,0.00014109,2]
[353020745,1739487051649,-500.0,0.00014109,2]
[353020747,1739487051659,-500.0,0.00014109,2]
[353020749,1739487051668,-554.89,0.00014109,2]
[353020751,1739487051678,-197.81,0.00014109,2]
[353020753,1739487051688,-1342.25,0.00014109,2]
[353020755,1739487051697,-500.0,0.00014109,2]
[353020757,1739487051706,-516.08,0.00014109,2]
[353020759,1739487051715,-500.0,0.00014109,2]
[353020761,1739487051725,-500.0,0.00014109,2]
[353020763,1739487051734,-592.3,0.00014109,2]
[353020764,1739487051743,-15683.85,0.00014109,2]
[353020767,1739487051753,-867.66,0.00014109,2]
[353020769,1739487051763,-674.82,0.00014109,2]
[353020771,1739487051773,-500.0,0.00014109,2]
[353020773,1739487051783,-2242.5,0.00014109,2]
[353020775,1739487051793,-1200.03,0.00014109,2]
[353020777,1739487051803,-500.0,0.00014109,2]
[353020779,1739487051813,-1438.09,0.00014109,2]
[353020781,1739487051822,-500.0,0.00014109,2]
[353020783,1739487051831,-452.098563,0.00014109,2]
[353020785,1739487051841,-500.0,0.00014109,2]
[353020787,1739487051850,-452.098563,0.00014109,2]
[353020789,1739487051859,-151.0,0.00014109,2]
[353020791,1739487051869,-1448.34,0.00014109,2]
[353020793,1739487051878,-1245.39,0.00014109,2]
[353020795,1739487051888,-163.386563,0.00014109,2]
[353020797,1739487051897,-510.42,0.00014109,2]
[353020799,1739487051907,-500.0,0.00014109,2]
[353020801,1739487051916,-304.865245,0.00014109,2]
[353020803,1739487051926,-151.0,0.00014109,2]
[353020805,1739487051936,-304.865245,0.00014109,2]
[353020807,1739487051945,-880.37,0.00014109,2]
[353020809,1739487051955,-316.1,0.00014109,2]
[353020811,1739487051965,-500.0,0.00014109,2]
[353020813,1739487051975,-500.0,0.00014109,2]
[353020815,1739487051984,-500.0,0.00014109,2]
[353020817,1739487051994,-1115.78,0.00014109,2]
[353020819,1739487052004,-361.984226,0.00014109,2]
[353020821,1739487052014,-5790.3,0.00014109,2]
[353020823,1739487052024,-511.1,0.00014109,2]
[353020825,1739487052033,-361.984226,0.00014109,2]
[353020827,1739487052043,-151.0,0.00014109,2]
[353020829,1739487052053,-570.97,0.00014109,2]
[353020831,1739487052063,-155.7250895,0.00014173,2]
[353020833,1739487052072,-155.7250895,0.00014173,2]
[353020835,1739487052081,-155.7250895,0.00014173,2]
[353020838,1739487052094,-155.7250895,0.00014173,2]
[353020840,1739487052103,-155.7250895,0.00014173,2]
[353020842,1739487052114,-155.7250895,0.00014173,2]
[353020844,1739487052123,-155.7250895,0.00014173,2]
[353020846,1739487052132,-155.7250895,0.00014173,2]
[353020848,1739487052141,-155.7250895,0.00014173,2]
[353020850,1739487052150,-155.7250895,0.00014173,2]
[353020852,1739487052160,-155.7250895,0.00014173,2]
[353020854,1739487052169,-155.7250895,0.00014173,2]
[353020856,1739487052180,-155.72,0.00014173,2]
[353020858,1739487052189,-12717.53579939,0.0001418,2]
[353020860,1739487052199,-845.413,0.00014189,2]
[353020862,1739487052208,-349.0,0.00014189,2]
[353020864,1739487052218,-250.0,0.00014189,2]
[353020866,1739487052228,-304.98,0.00014189,2]
[353020868,1739487052238,-349.0,0.00014189,2]
[353020870,1739487052248,-349.0,0.00014189,2]
[353020872,1739487052258,-314.0,0.00014189,2]
[353020874,1739487052267,-349.0,0.00014189,2]
[353020876,1739487052277,-314.0,0.00014189,2]
[353020878,1739487052287,-349.0,0.00014189,2]
[353020880,1739487052296,-314.0,0.00014189,2]
[353020882,1739487052306,-349.0,0.00014189,2]
[353020884,1739487052317,-314.0,0.00014189,2]
[353020886,1739487052327,-349.0,0.00014189,2]
[353020888,1739487052335,-314.0,0.00014189,2]
[353020890,1739487052345,-349.0,0.00014189,2]
[353020892,1739487052355,-314.0,0.00014189,2]
[353020894,1739487052365,-349.0,0.00014189,2]
[353020896,1739487052374,-314.0,0.00014189,2]
[353020898,1739487052384,-349.0,0.00014189,2]
[353020900,1739487052398,-314.0,0.00014189,2]
[353020902,1739487052407,-349.0,0.00014189,2]
[353020904,1739487052416,-314.0,0.00014189,2]
[353020907,1739487052427,-349.0,0.00014189,2]
[353020909,1739487052440,-314.0,0.00014189,2]
[353020911,1739487052450,-349.0,0.00014189,2]
[353020912,1739487052463,-314.0,0.00014189,2]
[353020915,1739487052474,-349.0,0.00014189,2]
[353020917,1739487052483,-314.0,0.00014189,2]
[353020919,1739487052493,-314.0,0.00014189,2]
[353020921,1739487052503,-349.0,0.00014189,2]
[353020923,1739487052513,-314.0,0.00014189,2]
[353020925,1739487052523,-349.0,0.00014189,2]
[353020927,1739487052532,-314.0,0.00014189,2]
[353020929,1739487052542,-349.0,0.00014189,2]
[353020931,1739487052551,-314.0,0.00014189,2]
[353020933,1739487052561,-349.0,0.00014189,2]
[353020935,1739487052571,-314.0,0.00014189,2]
[353020937,1739487052580,-349.0,0.00014189,2]
[353020939,1739487052590,-314.0,0.00014189,2]
[353020941,1739487052600,-349.0,0.00014189,2]
[353020943,1739487052610,-349.0,0.00014189,2]
[353020945,1739487052619,-314.0,0.00014189,2]
[353020947,1739487052629,-349.0,0.00014189,2]
[353020948,1739487052638,-314.0,0.00014189,2]
[353020949,1739487052648,-349.0,0.00014189,2]
[353020950,1739487052658,-349.0,0.00014189,2]
[353020951,1739487052668,-314.0,0.00014189,2]
[353020952,1739487052680,-349.0,0.00014189,2]
[353020953,1739487052690,-314.0,0.00014189,2]
[353020954,1739487052700,-349.0,0.00014189,2]
[353020955,1739487052710,-314.0,0.00014189,2]
[353020957,1739487052720,-349.0,0.00014189,2]
[353020958,1739487052730,-314.0,0.00014189,2]
[353020960,1739487052740,-349.0,0.00014189,2]
[353020962,1739487052750,-314.0,0.00014189,2]
[353020964,1739487052759,-151.0,0.00014191,2]
[353020965,1739487052769,-500.0,0.00014191,2]
[353020966,1739487052779,-443.70443085,0.00014191,2]
[353020967,1739487052790,-500.0,0.00014191,2]
[353020968,1739487052799,-554.89,0.00014191,2]
[353020969,1739487052809,-199.167244,0.00014191,2]
[353020971,1739487052819,-199.167244,0.00014191,2]
[353020973,1739487052829,-514.195691,0.00014191,2]
[353020975,1739487052838,-514.195691,0.00014191,2]
[353020977,1739487052848,-1342.25,0.00014191,2]
[353020979,1739487052857,-500.0,0.00014191,2]
[353020981,1739487052867,-215.237886,0.00014191,2]
[353020983,1739487052877,-516.08,0.00014191,2]
[353020985,1739487052887,-500.0,0.00014191,2]
[353020987,1739487052897,-500.0,0.00014191,2]
[353020989,1739487052907,-592.3,0.00014191,2]
[353020990,1739487052917,-15683.85,0.00014191,2]
[353020992,1739487052928,-1374.070947,0.00014191,2]
[353020994,1739487052938,-153.594868,0.00014191,2]
[353020996,1739487052948,-1374.070947,0.00014191,2]
[353020998,1739487052957,-153.594868,0.00014191,2]
[353021000,1739487052968,-867.66,0.00014191,2]
[353021002,1739487052985,-674.82,0.00014191,2]
[353021003,1739487052995,-529.18,0.00014191,2]
[353021005,1739487053006,-2242.5,0.00014191,2]
[353021007,1739487053016,-1200.03,0.00014191,2]
[353021009,1739487053026,-359.489498,0.00014191,2]
[353021011,1739487053036,-463.558548,0.00014191,2]
[353021013,1739487053046,-500.0,0.00014191,2]
[353021015,1739487053056,-359.489498,0.00014191,2]
[353021017,1739487053066,-463.558548,0.00014191,2]
[353021019,1739487053076,-1438.09,0.00014191,2]
[353021020,1739487053086,-500.0,0.00014191,2]
[353021022,1739487053096,-500.0,0.00014191,2]
[353021024,1739487053106,-1448.34,0.00014191,2]
[353021026,1739487053117,-1245.39,0.00014191,2]
[353021028,1739487053128,-510.42,0.00014191,2]
[353021030,1739487053137,-500.0,0.00014191,2]
[353021031,1739487053147,-880.37,0.00014191,2]
[353021033,1739487053158,-500.0,0.00014191,2]
[353021035,1739487053167,-500.0,0.00014191,2]
[353021036,1739487053178,-500.0,0.00014191,2]
[353021037,1739487053187,-1115.78,0.00014191,2]
[353021038,1739487053198,-5790.3,0.00014191,2]
[353021039,1739487053208,-511.1,0.00014191,2]
[353021040,1739487053218,-570.97,0.00014191,2]
[353021041,1739487053228,-151.0,0.000142,2]
[353021042,1739487053238,-151.0,0.000142,2]
[353021043,1739487053247,-151.0,0.000142,2]
[353021044,1739487053350,-465.03539913,0.00014212,2]
[353021045,1739487053362,-150.0,0.00014248,2]
[353021046,1739487053373,-1970.0,0.00014248,2]
[353021047,1739487053383,-537.0,0.00014248,2]
[353021048,1739487053395,-2293.0,0.00014248,2]
[353021049,1739487053405,-396.0,0.00014248,2]
[353021050,1739487053415,-1733.607686,0.00014255,2]
[353021051,1739487053426,-3647.5067703,0.00014273,5]
[353021052,1739487053436,-500.0,0.00014273,2]
[353021053,1739487053446,-374.94133068,0.00014273,2]
[353021054,1739487053456,-554.89,0.00014273,2]
[353021055,1739487053467,-151.0,0.00014273,2]
[353021056,1739487053477,-387.026366,0.00014273,2]
[353021057,1739487053488,-387.026366,0.00014273,2]
[353021058,1739487053498,-1342.25,0.00014273,2]
[353021059,1739487053508,-500.0,0.00014273,2]
[353021060,1739487053518,-516.08,0.00014273,2]
[353021061,1739487053528,-500.0,0.00014273,2]
[353021062,1739487053538,-635.60699925,0.00014273,2]
[353021063,1739487053549,-592.3,0.00014273,2]
[353021064,1739487053559,-15683.85,0.00014273,2]
[353021065,1739487053569,-867.66,0.00014273,2]
[353021066,1739487053579,-674.82,0.00014273,2]
[353021067,1739487053591,-2242.5,0.00014273,2]
[353021068,1739487053602,-1200.03,0.00014273,2]
[353021069,1739487053613,-371.02,0.00014273,2]
[353021070,1739487053624,-1438.09,0.00014273,2]
[353021071,1739487053634,-500.0,0.00014273,2]
[353021072,1739487053644,-500.0,0.00014273,2]
[353021073,1739487053655,-1448.34,0.00014273,2]
[353021074,1739487053665,-1245.39,0.00014273,2]
[353021075,1739487053674,-510.42,0.00014273,2]
[353021076,1739487053684,-500.0,0.00014273,2]
[353021077,1739487053694,-880.37,0.00014273,2]
[353021078,1739487053704,-500.0,0.00014273,2]
[353021079,1739487053713,-500.0,0.00014273,2]
[353021080,1739487053723,-500.0,0.00014273,2]
[353021081,1739487053732,-1115.78,0.00014273,2]
[353021082,1739487053742,-5790.3,0.00014273,2]
[353021083,1739487053752,-511.1,0.00014273,2]
[353021084,1739487053763,-570.97,0.00014273,2]
[353021085,1739487053772,-151.0,0.000143,2]
[353021086,1739487053782,-151.0,0.000143,2]
[353021087,1739487053792,-151.0,0.000143,2]
[353021088,1739487053802,-151.0,0.000143,2]
[353021089,1739487053812,-151.0,0.000143,2]
[353021090,1739487053821,-151.0,0.000143,2]
[353021091,1739487053831,-151.0,0.000143,2]
[353021092,1739487053840,-151.0,0.000143,2]
[353021093,1739487053850,-3254.85361653,0.000143,2]
[353021094,1739487053860,-236.18305241,0.000143,2]
[353021095,1739487053870,-236.18305241,0.000143,2]
[353021096,1739487053879,-236.18305241,0.000143,2]
[353021097,1739487053888,-236.18305241,0.000143,2]
[353021098,1739487053898,-236.18305241,0.000143,2]
[353021099,1739487053908,-236.18305241,0.000143,2]
[353021100,1739487053918,-236.18305241,0.000143,2]
[353021101,1739487053929,-236.18305241,0.000143,2]
[353021102,1739487053938,-236.18305241,0.000143,2]
[353021103,1739487053948,-236.18305241,0.000143,2]
[353021104,1739487053957,-236.18305241,0.000143,2]
[353021105,1739487053967,-236.18305241,0.000143,2]
[353021106,1739487053977,-236.18305241,0.000143,2]
[353021107,1739487053986,-236.18305241,0.000143,2]
[353021108,1739487053996,-236.18305241,0.000143,2]
[353021109,1739487054005,-236.18305241,0.000143,2]
[353021110,1739487054015,-236.18305241,0.000143,2]
[353021111,1739487054024,-236.18305241,0.000143,2]
[353021112,1739487054034,-236.18305241,0.000143,2]
[353021113,1739487054043,-236.18,0.000143,2]
[353021114,1739487054053,-35133.4387228,0.00014356,5]
[353021115,1739487054063,-500.0,0.00014356,2]
[353021116,1739487054073,-151.0,0.00014356,2]
[353021117,1739487054082,-251.429093,0.00014356,2]
[353021118,1739487054093,-151.0,0.00014356,2]
[353021119,1739487054105,-161.625758,0.00014356,2]
[353021120,1739487054115,-161.625758,0.00014356,2]
[353021121,1739487054125,-151.0,0.00014356,2]
[353021122,1739487054134,-151.0,0.00014356,2]
[353021123,1739487054143,-554.89,0.00014356,2]
[353021124,1739487054153,-151.0,0.00014356,2]
[353021125,1739487054163,-151.0,0.00014356,2]
[353021126,1739487054174,-1003.260591,0.00014356,2]
[353021127,1739487054183,-1003.260591,0.00014356,2]
[353021128,1739487054194,-1342.25,0.00014356,2]
[353021129,1739487054203,-500.0,0.00014356,2]
[353021130,1739487054214,-516.08,0.00014356,2]
[353021131,1739487054223,-500.0,0.00014356,2]
[353021132,1739487054234,-592.3,0.00014356,2]
[353021133,1739487054244,-15683.85,0.00014356,2]
[353021134,1739487054254,-867.66,0.00014356,2]
[353021135,1739487054264,-674.82,0.00014356,2]
[353021136,1739487054274,-2242.5,0.00014356,2]
[353021137,1739487054284,-1200.03,0.00014356,2]
[353021138,1739487054299,-1438.09,0.00014356,2]
[353021139,1739487054316,-500.0,0.00014356,2]
[353021140,1739487054331,-500.0,0.00014356,2]
[353021141,1739487054344,-1448.34,0.00014356,2]
[353021142,1739487054360,-1245.39,0.00014356,2]
[353021143,1739487054374,-510.42,0.00014356,2]
[353021144,1739487054390,-500.0,0.00014356,2]
[353021145,1739487054406,-880.37,0.00014356,2]
[353021146,1739487054422,-500.0,0.00014356,2]
[353021147,1739487054440,-500.0,0.00014356,2]
[353021148,1739487054454,-500.0,0.00014356,2]
[353021149,1739487054467,-1115.78,0.00014356,2]
[353021150,1739487054481,-5790.3,0.00014356,2]
[353021151,1739487054499,-511.1,0.00014356,2]
[353021152,1739487054514,-151.0,0.00014356,2]
[353021153,1739487054526,-570.97,0.00014356,2]
[353021154,1739487054540,-500.0,0.00014373,2]
[353021155,1739487054553,-151.0,0.00014398,2]
[353021156,1739487054569,-452.098563,0.00014399,2]
[353021157,1739487054588,-452.098563,0.00014399,2]
[353021158,1739487054605,-304.865245,0.00014399,2]
[353021159,1739487054622,-151.0,0.00014399,2]
[353021160,1739487054637,-304.865245,0.00014399,2]
[353021161,1739487054649,-361.984226,0.00014399,2]
[353021162,1739487054661,-361.984226,0.00014399,2]
[353021163,1739487054676,-160.37192993,0.00014399,2]
[353021164,1739487054691,-732338.96437601,0.000144,5]
[353021165,1739487054711,-23864.01411966,0.000144,5]
[353021166,1739487054726,-1752.230928,0.000144,5]
[353021167,1739487054936,-28990.20761341,0.000144,5]
[353021170,1739487998137,-185.90064072,0.00011897,2]
[353021171,1739488228613,500.0,0.00017947,120]
[353021207,1739488232701,-1014.09935928,0.00011897,2]
[353021209,1739488232711,-6616.65682713,0.00012132,4]
[353021211,1739488232721,-300.0,0.00012672,2]
[353021213,1739488232731,-24900.0,0.00012673,2]
[353021215,1739488232740,-1200.0,0.00013267,2]
[353021217,1739488232750,-692.55378881,0.00013598,2]
[353021219,1739488232759,-418.13043247,0.00013698,2]
[353021222,1739488232784,-182.40368239,0.00013698,2]
[353021224,1739488232794,-449.5861929,0.00013698,2]
[353021242,1739488232957,-50.4138071,0.00013698,2]
[353021245,1739488232967,-500.0,0.00013698,2]
[353021248,1739488232977,-500.0,0.00013698,2]
[353021251,1739488232987,-500.0,0.00013698,2]
[353021253,1739488232997,-448.88021512,0.00013698,2]
[353021256,1739488233007,-500.0,0.00013698,2]
[353021258,1739488233017,-98.90340382,0.00013698,2]
[353021703,1739488238447,-395.0,0.00013698,2]
[353021706,1739488238460,-6.09659618,0.00013698,2]
[353021708,1739488238470,-500.0,0.00013698,2]
[353021710,1739488238480,-500.0,0.00013698,2]
[353021712,1739488238490,-633.47,0.00013698,2]
[353021714,1739488238500,-500.0,0.00013698,2]
[353021716,1739488238510,-500.0,0.00013698,2]
[353021718,1739488238519,-500.0,0.00013698,2]
[353021720,1739488238529,-285.37874565,0.00013698,2]
[353021722,1739488238539,-168.80832834,0.00013698,2]
[353021724,1739488238549,-500.0,0.00013698,2]
[353021726,1739488238558,-500.0,0.00013698,2]
[353021728,1739488238567,-500.0,0.00013698,2]
[353021731,1739488238577,-500.0,0.00013698,2]
[353021734,1739488238586,-500.0,0.00013698,2]
[353021737,1739488238596,-500.0,0.00013698,2]
[353021739,1739488238606,-500.0,0.00013698,2]
[353021741,1739488238616,-500.0,0.00013698,2]
[353021743,1739488238625,-500.0,0.00013698,2]
[353021745,1739488238635,-500.0,0.00013698,2]
[353021747,1739488238645,-500.0,0.00013698,2]
[353021749,1739488238654,-500.0,0.00013698,2]
[353021751,1739488238664,-91.67704645,0.00013698,2]
[353021755,1739488238687,-408.32295355,0.00013698,2]
[353021756,1739488238697,-500.0,0.00013698,2]
[353021759,1739488238707,-500.0,0.00013698,2]
[353021761,1739488238716,-500.0,0.00013698,2]
[353021762,1739488238726,-500.0,0.00013698,2]
[353021764,1739488238736,-500.0,0.00013698,2]
[353021766,1739488238747,-603.59427457,0.00013698,2]
[353021768,1739488238757,-500.0,0.00013698,2]
[353021770,1739488238767,-500.0,0.00013698,2]
[353021772,1739488238776,-500.0,0.00013698,2]
[353021774,1739488238789,-500.0,0.00013698,2]
[353021776,1739488238799,-500.0,0.00013698,2]
[353021778,1739488238808,-156.27045151,0.00013698,2]
[353021780,1739488238818,-500.0,0.00013698,2]
[353021782,1739488238829,-500.0,0.00013698,2]
[353021784,1739488238838,-500.0,0.00013698,2]
[353021786,1739488238848,-500.0,0.00013698,2]
[353021788,1739488238858,-500.0,0.00013698,2]